fUSD/lending_fUSD_20260605
["ID","MTS","AMOUNT","RATE_DAILY","PERIOD"]
[424138690,1780607502000,-674.85340265,0.00035616,7]
[424138686,1780607502000,-674.85340265,0.00035616,7]
[424138687,1780607502000,-749.83711406,0.00035616,7]
[424138684,1780607502000,-749.83711406,0.00035616,7]
[424138689,1780607502000,-674.85340265,0.00035616,7]
[424138688,1780607502000,-674.85340265,0.00035616,7]
[424138699,1780607502000,-674.85340265,0.00035616,7]
[424138698,1780607502000,-674.85340265,0.00035616,7]
[424138696,1780607502000,-674.85340265,0.00035616,7]
[424138702,1780607502000,-674.85340265,0.00035616,7]
[424138694,1780607502000,-674.85340265,0.00035616,7]
[424138703,1780607502000,-674.85340265,0.00035616,7]
[424138693,1780607502000,-674.85340265,0.00035616,7]
[424138692,1780607502000,-674.85340265,0.00035616,7]
[424138695,1780607502000,-674.85340265,0.00035616,7]
[424138673,1780607502000,-674.85340265,0.00035616,7]
[424138732,1780607503000,-4341.14,0.00038027,11]
[424138736,1780607503000,-3965.76031811,0.00038082,11]
[424138729,1780607503000,-500.0,0.00037972,2]
[424138730,1780607503000,-46554.77,0.00037972,11]
[424138735,1780607503000,-4341.14,0.00038082,11]
[424138731,1780607503000,-500.0,0.00038027,11]
[424138733,1780607503000,-46554.77,0.00038027,11]
[424138734,1780607503000,-500.0,0.00038082,11]
[424138737,1780607528000,-250.0,0.00013139,2]
[424138738,1780607530000,2000.0,0.00027465,120]
[424138739,1780607556000,-250.0,0.00013773,2]
[424138740,1780607610000,-500.0,0.00013735,2]
[424138741,1780607624000,-98.34,0.00013735,2]
[424138742,1780607631000,302.103024,0.00028221,120]
[424138743,1780607677000,-500.0,0.00014097,2]
[424138744,1780607690000,-98.34,0.00014097,2]
[424138745,1780607704000,281.371496,0.0002401,120]
[424138746,1780607710000,492.120222,0.0002401,120]
[424138747,1780607743000,-500.0,0.00014097,2]
[424138749,1780607757000,152.0,0.00029246,120]
[424138748,1780607757000,-500.0,0.00013635,2]
[424138750,1780607771000,-152.0,0.00013827,2]
[424138751,1780607823000,-249.62590473,0.00013297,2]
[424138754,1780607960000,7709.80117756,8e-05,2]
[424138755,1780608068000,367.67,0.00029863,120]
[424138756,1780608115000,1575.39933032,0.0001,2]
[424138757,1780608128000,1588.35239231,0.0001,2]
[424138759,1780608138000,41591.14843981,0.000107,2]
[424138760,1780608169000,1120.23721423,8.24e-05,2]
[424138762,1780608278000,-500.0,9.039e-05,2]
[424138764,1780608278000,-4115.64275301,9.04e-05,2]
[424138763,1780608278000,-359.12316203,9.039e-05,2]
[424138765,1780608278000,-880.47722315,9.9e-05,2]
[424138766,1780608278000,-277.25669425,9.9e-05,2]
[424138761,1780608278000,-500.0,9.039e-05,2]
[424138767,1780608278000,-193.0,9.943e-05,2]
[424138772,1780608278000,-502.73148781,9.999e-05,2]
[424138773,1780608278000,-9387.93445931,0.0001,2]
[424138768,1780608278000,-500.0,9.943e-05,2]
[424138771,1780608278000,-233.83422044,9.999e-05,2]
[424138769,1780608278000,-300.0,9.943e-05,2]
[424138770,1780608278000,-250.0,9.943e-05,2]
[424138774,1780608307000,2345.29866,7.945e-05,2]
[424138783,1780608326000,-22007.5497601,0.000107,2]
[424138775,1780608326000,-163.68395431,9.942e-05,2]
[424138780,1780608326000,-4109.419,0.00010486,2]
[424138781,1780608326000,-260.587,0.00010486,2]
[424138777,1780608326000,-1708.76028559,0.0001,2]
[424138779,1780608326000,-1200.0,0.00010485,2]
[424138778,1780608326000,-150.0,0.00010079,2]
[424138776,1780608326000,-250.0,9.971e-05,2]
[424138782,1780608326000,-150.0,0.00010699,2]
[424138784,1780608346000,-150.0,0.00010699,2]
[424138785,1780608346000,-7950.0,0.000107,2]
[424138786,1780608381000,-168.93,0.00010478,2]
[424138787,1780608404000,164.08,0.0002784,120]
[424138789,1780608434000,-393.33655151,9.9e-05,2]
[424138790,1780608445000,200.0,0.000107,3]
[424138791,1780608447000,500.0,0.000108,3]
[424138792,1780608449000,800.0,0.000109,3]
[424138794,1780608488000,-587.50268636,9.9e-05,2]
[424138798,1780608541000,-150.0,0.00010699,2]
[424138801,1780608559000,-4888.01080026,0.000107,2]
[424138800,1780608559000,-316.918357,0.00010646,2]
[424138802,1780608595000,-1750.57756358,0.000107,2]
[424138805,1780608612000,-1750.57756358,0.000107,2]
[424138807,1780608629000,-500.0,0.00010699,2]
[424140086,1780608648000,-423.39781948,0.00010699,2]
[424140088,1780608648000,-291765.37851293,0.000107,2]
[424140090,1780608648000,-41528.26546518,0.000107,2]
[424140095,1780608648000,-131007.41276339,0.000107,2]
[424140093,1780608648000,-20796.31718993,0.000107,2]
[424140083,1780608648000,-351.91204146,0.00010699,2]
[424140110,1780608648000,-26748.02443109,0.000107,2]
[424140081,1780608648000,-700.0,0.00010699,2]
[424140266,1780608649000,343.21445928,9.491e-05,7]
[424140203,1780608649000,-500.0,0.000107,2]
[424140399,1780608650000,-727.0,0.00011769,2]
[424140382,1780608650000,-9999.99,0.00011737,2]
[424140401,1780608650000,-250.0,0.0001177,2]
[424140393,1780608650000,-299.99,0.00011737,2]
[424140395,1780608650000,-999.99,0.00011737,2]
[424140380,1780608650000,-250.0,0.00011526,2]
[424140376,1780608650000,-146621.38518857,0.00010907,2]
[424140378,1780608650000,-250.0,0.00010936,2]
[424140361,1780608650000,-4028.25080635,0.000107,2]
[424140363,1780608650000,-837.87522466,0.000107,2]
[424140367,1780608650000,-1123895.59465407,0.000107,2]
[424140397,1780608650000,-9999.99,0.00011737,2]
[424140372,1780608650000,-500.0,0.0001089,2]
[424140370,1780608650000,-1540.83436419,0.0001089,2]
[424140359,1780608650000,-2047.55426462,0.000107,2]
[424140352,1780608650000,-197.98931216,0.0001069,2]
[424140357,1780608650000,-3621.46068012,0.000107,2]
[424140354,1780608650000,-1522.15617623,0.000107,2]
[424140374,1780608650000,-3397.82563495,0.000109,2]
[424140384,1780608650000,-24999.99,0.00011737,2]
[424140364,1780608650000,-4600.15140328,0.000107,2]
[424140404,1780608650000,-150.0,0.00013011,2]
[424140389,1780608650000,-150.99,0.00011737,2]
[424140440,1780608650000,-444.0,0.00013933,2]
[424140437,1780608650000,-456.0,0.00013933,2]
[424140433,1780608650000,-166.66,0.00013836,2]
[424140435,1780608650000,-1458.51686945,0.00013844,2]
[424140428,1780608650000,-2542.12,0.00013736,2]
[424140429,1780608650000,-3508.56,0.00013789,2]
[424140414,1780608650000,-1467.87,0.00013189,2]
[424140412,1780608650000,-3508.56,0.00013132,2]
[424140426,1780608650000,-500.0,0.00013735,2]
[424140431,1780608650000,-500.0,0.00013827,2]
[424140416,1780608650000,-3508.56,0.0001346,2]
[424140410,1780608650000,-298.17,0.00013098,2]
[424140425,1780608650000,-500.0,0.00013735,2]
[424140423,1780608650000,-166.66,0.00013699,2]
[424140421,1780608650000,-200.0,0.00013699,2]
[424140419,1780608650000,-3397.82563488,0.00013539,2]
[424140408,1780608650000,-164.08,0.00013046,2]
[424140406,1780608650000,-2000.0,0.00013039,2]
[424140391,1780608650000,-9999.99,0.00011737,2]
[424140387,1780608650000,-9999.99,0.00011737,2]
[424140530,1780608651000,-250.0,0.00014138,2]
[424140520,1780608651000,-500.0,0.00014098,2]
[424140517,1780608651000,-500.0,0.00014098,2]
[424140506,1780608651000,-500.0,0.00014098,2]
[424140518,1780608651000,-500.0,0.00014098,2]
[424140513,1780608651000,-395.10212891,0.00014098,2]
[424140515,1780608651000,-387.18331802,0.00014098,2]
[424140501,1780608651000,-500.0,0.00014098,2]
[424140503,1780608651000,-500.0,0.00014098,2]
[424140505,1780608651000,-500.0,0.00014098,2]
[424140531,1780608651000,-453.0,0.00014156,2]
[424140511,1780608651000,-166.97040683,0.00014098,2]
[424140523,1780608651000,-500.0,0.00014098,2]
[424140543,1780608651000,-500.0,0.00014576,2]
[424140522,1780608651000,-500.0,0.00014098,2]
[424140521,1780608651000,-500.0,0.00014098,2]
[424140519,1780608651000,-500.0,0.00014098,2]
[424140528,1780608651000,-166.66,0.0001411,2]
[424140525,1780608651000,-500.0,0.00014098,2]
[424140529,1780608651000,-3508.56,0.00014117,2]
[424140526,1780608651000,-500.0,0.00014098,2]
[424140524,1780608651000,-500.0,0.00014098,2]
[424140533,1780608651000,-267.90363859,0.00014215,2]
[424140532,1780608651000,-446.0,0.00014156,2]
[424140534,1780608651000,-166.66,0.00014247,2]
[424140535,1780608651000,-7401.6407219,0.00014268,2]
[424140499,1780608651000,-500.0,0.00014098,2]
[424140527,1780608651000,-376.0079496,0.00014098,2]
[424140495,1780608651000,-458.0,0.00014097,2]
[424140450,1780608651000,-457.0,0.00014027,2]
[424140481,1780608651000,-447.0,0.00014028,2]
[424140445,1780608651000,-166.66,0.00013973,2]
[424140444,1780608651000,-449.0,0.00013955,2]
[424140443,1780608651000,-442.0,0.00013955,2]
[424140442,1780608651000,-451.0,0.00013955,2]
[424140448,1780608651000,-443.0,0.00013981,2]
[424140536,1780608651000,-500.0,0.00014302,2]
[424140452,1780608651000,-444.0,0.00014027,2]
[424140454,1780608651000,-453.0,0.00014027,2]
[424140466,1780608651000,-443.0,0.00014028,2]
[424140462,1780608651000,-458.0,0.00014027,2]
[424140464,1780608651000,-500.0,0.00014028,2]
[424140468,1780608651000,-458.0,0.00014028,2]
[424140470,1780608651000,-448.0,0.00014028,2]
[424140456,1780608651000,-454.0,0.00014027,2]
[424140458,1780608651000,-457.0,0.00014027,2]
[424140460,1780608651000,-454.0,0.00014027,2]
[424140475,1780608651000,-442.0,0.00014028,2]
[424140472,1780608651000,-454.0,0.00014028,2]
[424140477,1780608651000,-450.0,0.00014028,2]
[424140491,1780608651000,-455.0,0.00014097,2]
[424140487,1780608651000,-4999.99,0.00014096,2]
[424140489,1780608651000,-445.0,0.00014097,2]
[424140483,1780608651000,-458.0,0.00014028,2]
[424140479,1780608651000,-447.0,0.00014028,2]
[424140497,1780608651000,-500.0,0.00014097,2]
[424140496,1780608651000,-500.0,0.00014097,2]
[424140485,1780608651000,-454.0,0.00014028,2]
[424140493,1780608651000,-446.0,0.00014097,2]
[424140537,1780608651000,-166.66,0.00014384,2]
[424140446,1780608651000,-453.0,0.00013981,2]
[424140541,1780608651000,-450.0,0.00014485,2]
[424140578,1780608651000,-3910.43,0.00016116,2]
[424140581,1780608651000,-166.66,0.00016286,2]
[424140583,1780608651000,-2000.0,0.00016299,2]
[424140571,1780608651000,-500.0,0.00015853,2]
[424140582,1780608651000,-3397.82563488,0.00016287,2]
[424140574,1780608651000,-267.90363859,0.00015918,2]
[424140572,1780608651000,-500.0,0.00015853,2]
[424140577,1780608651000,-5597.53,0.00016037,2]
[424140576,1780608651000,-429.27591872,0.00016,2]
[424140573,1780608651000,-500.0,0.00015853,2]
[424140575,1780608651000,-500.0,0.00015923,2]
[424140584,1780608651000,-314.2,0.00016438,2]
[424140587,1780608651000,-150.0,0.00016693,2]
[424140592,1780608651000,-150.0,0.00016693,2]
[424140585,1780608651000,-6622.41867616,0.000165,2]
[424140591,1780608651000,-150.0,0.00016693,2]
[424140590,1780608651000,-150.0,0.00016693,2]
[424140586,1780608651000,-150.0,0.00016693,2]
[424140588,1780608651000,-150.0,0.00016693,2]
[424140589,1780608651000,-150.0,0.00016693,2]
[424140595,1780608651000,-178.39989623,0.00016693,2]
[424140596,1780608651000,-178.39989623,0.00016712,2]
[424140540,1780608651000,-445.0,0.00014485,2]
[424140593,1780608651000,-150.0,0.00016693,2]
[424140599,1780608651000,-150.0,0.00016743,2]
[424140597,1780608651000,-2500.0,0.00016719,2]
[424140598,1780608651000,-178.39989623,0.00016731,2]
[424140580,1780608651000,-203.54945,0.0001617,2]
[424140579,1780608651000,-168.240907,0.0001617,2]
[424140594,1780608651000,-150.0,0.00016693,2]
[424140566,1780608651000,-266.5708458,0.00015683,3]
[424140565,1780608651000,-166.66,0.00015307,2]
[424140538,1780608651000,-3508.56,0.00014445,2]
[424140542,1780608651000,-500.0,0.00014519,2]
[424140544,1780608651000,-319.25395562,0.00014583,2]
[424140546,1780608651000,-160.0,0.00014624,2]
[424140548,1780608651000,-500.7272766,0.000147,2]
[424140547,1780608651000,-2000.0,0.00014669,2]
[424140551,1780608651000,-1100.0,0.000149,5]
[424140550,1780608651000,-500.0,0.0001485,2]
[424140549,1780608651000,-166.66,0.00014818,2]
[424140552,1780608651000,-154.72339764,0.0001491,2]
[424140554,1780608651000,-151.0,0.00014997,2]
[424140555,1780608651000,-151.0,0.00014997,2]
[424140556,1780608651000,-548.48,0.00014999,2]
[424140539,1780608651000,-456.0,0.00014485,2]
[424140545,1780608651000,-215.73365239,0.00014624,2]
[424140557,1780608651000,-548.48,0.00014999,2]
[424140567,1780608651000,-168.93,0.00015717,2]
[424140568,1780608651000,-500.0,0.00015739,2]
[424140563,1780608651000,-291.04,0.00015068,2]
[424140562,1780608651000,-267.90363859,0.00015066,2]
[424140561,1780608651000,-865962.05130183,0.00015,2]
[424140564,1780608651000,-500.0,0.00015124,2]
[424140560,1780608651000,-1000.0,0.00014999,2]
[424140570,1780608651000,-500.0,0.0001585,2]
[424140558,1780608651000,-548.48,0.00014999,2]
[424140559,1780608651000,-548.48,0.00014999,2]
[424140569,1780608651000,-166.66,0.00015796,2]
[424140553,1780608651000,-220.90769832,0.00014967,2]
[424140632,1780608652000,-452.0,0.00017026,2]
[424140635,1780608652000,-150.0,0.00017044,2]
[424140627,1780608652000,-150.0,0.0001699,2]
[424140633,1780608652000,-442.0,0.00017026,2]
[424140636,1780608652000,-178.39989623,0.00017049,2]
[424140629,1780608652000,-150.0,0.00016994,2]
[424140631,1780608652000,-178.39989623,0.00017012,2]
[424140634,1780608652000,-178.39989623,0.0001703,2]
[424140628,1780608652000,-178.39989623,0.00016993,2]
[424140630,1780608652000,-150.0,0.00017002,2]
[424140637,1780608652000,-150.0,0.00017064,2]
[424140647,1780608652000,-178.39989623,0.00017162,2]
[424140643,1780608652000,-178.39989623,0.00017124,2]
[424140645,1780608652000,-178.39989623,0.00017143,2]
[424140639,1780608652000,-178.39989623,0.00017068,2]
[424140642,1780608652000,-178.39989623,0.00017105,2]
[424140641,1780608652000,-150.0,0.00017094,2]
[424140646,1780608652000,-150.0,0.00017144,2]
[424140640,1780608652000,-178.39989623,0.00017087,2]
[424140649,1780608652000,-150.0,0.00017188,2]
[424140648,1780608652000,-178.39989623,0.0001718,2]
[424140621,1780608652000,-17062.47,0.00016922,2]
[424140638,1780608652000,-150.0,0.00017064,2]
[424140622,1780608652000,-178.39989623,0.00016937,2]
[424140614,1780608652000,-178.39989623,0.00016862,2]
[424140623,1780608652000,-150.0,0.0001694,2]
[424140602,1780608652000,-178.39989623,0.00016768,2]
[424140604,1780608652000,-166.66,0.00016775,2]
[424140606,1780608652000,-150.0,0.00016793,2]
[424140601,1780608652000,-150.0,0.00016767,2]
[424140603,1780608652000,-267.90363859,0.0001677,2]
[424140605,1780608652000,-178.39989623,0.00016787,2]
[424140600,1780608652000,-178.39989623,0.00016749,2]
[424140607,1780608652000,-178.39989623,0.00016806,2]
[424140610,1780608652000,-150.0,0.00016842,2]
[424140609,1780608652000,-178.39989623,0.00016824,2]
[424140625,1780608652000,-178.39989623,0.00016955,2]
[424140613,1780608652000,-1509.10095937,0.00016861,2]
[424140611,1780608652000,-178.39989623,0.00016843,2]
[424140612,1780608652000,-150.0,0.00016844,2]
[424140615,1780608652000,-178.39989623,0.00016881,2]
[424140617,1780608652000,-178.39989623,0.00016899,2]
[424140620,1780608652000,-178.39989623,0.00016918,2]
[424140618,1780608652000,-202.30823119,0.00016913,2]
[424140626,1780608652000,-178.39989623,0.00016974,2]
[424140619,1780608652000,-150.0,0.00016916,2]
[424140616,1780608652000,-150.0,0.00016894,2]
[424140624,1780608652000,-150.0,0.00016944,2]
[424140608,1780608652000,-150.0,0.00016817,2]
[424140644,1780608652000,-150.0,0.00017138,2]
[424140661,1780608652000,-150.0,0.00017295,2]
[424140662,1780608652000,-150.0,0.00017311,2]
[424140676,1780608652000,-150.0,0.00017435,2]
[424140683,1780608652000,-150.0,0.00017509,2]
[424140678,1780608652000,-150.0,0.00017445,2]
[424140679,1780608652000,-178.39989623,0.00017461,2]
[424140680,1780608652000,-178.39989623,0.0001748,2]
[424140684,1780608652000,-178.39989623,0.00017518,2]
[424140682,1780608652000,-178.39989623,0.00017499,2]
[424140681,1780608652000,-150.0,0.00017495,2]
[424140692,1780608652000,-150.0,0.00017595,2]
[424140687,1780608652000,-178.39989623,0.00017555,2]
[424140685,1780608652000,-178.39989623,0.00017536,2]
[424140689,1780608652000,-178.39989623,0.00017574,2]
[424140695,1780608652000,-150.0,0.00017621,2]
[424140688,1780608652000,-150.0,0.00017559,2]
[424140693,1780608652000,-178.39989623,0.00017611,2]
[424140698,1780608652000,-178.39989623,0.0001763,2]
[424140694,1780608652000,-150.0,0.00017621,2]
[424140696,1780608652000,-150.0,0.00017621,2]
[424140697,1780608652000,-267.90363859,0.00017622,2]
[424140700,1780608652000,-178.39989623,0.00017649,2]
[424140699,1780608652000,-150.0,0.00017646,2]
[424140651,1780608652000,-178.39989623,0.00017199,2]
[424140690,1780608652000,-150.0,0.00017583,2]
[424140686,1780608652000,-150.0,0.00017545,2]
[424140691,1780608652000,-178.39989623,0.00017592,2]
[424140674,1780608652000,-178.39989623,0.00017424,2]
[424140656,1780608652000,-178.39989623,0.00017255,2]
[424140677,1780608652000,-178.39989623,0.00017443,2]
[424140652,1780608652000,-150.0,0.00017212,2]
[424140657,1780608652000,-166.66,0.00017264,2]
[424140659,1780608652000,-150.0,0.00017287,2]
[424140655,1780608652000,-150.0,0.00017245,2]
[424140658,1780608652000,-178.39989623,0.00017274,2]
[424140660,1780608652000,-178.39989623,0.00017293,2]
[424140653,1780608652000,-178.39989623,0.00017218,2]
[424140654,1780608652000,-178.39989623,0.00017236,2]
[424140663,1780608652000,-150.0,0.00017311,2]
[424140650,1780608652000,-150.0,0.00017194,2]
[424140667,1780608652000,-178.39989623,0.00017349,2]
[424140666,1780608652000,-150.0,0.00017345,2]
[424140673,1780608652000,-178.39989623,0.00017405,2]
[424140668,1780608652000,-150.0,0.00017361,2]
[424140671,1780608652000,-150.0,0.00017395,2]
[424140665,1780608652000,-178.39989623,0.0001733,2]
[424140670,1780608652000,-178.39989623,0.00017386,2]
[424140672,1780608652000,-1509.10095937,0.00017399,2]
[424140664,1780608652000,-178.39989623,0.00017311,2]
[424140669,1780608652000,-178.39989623,0.00017368,2]
[424140675,1780608652000,-150.0,0.00017435,2]
[424140741,1780608653000,-178.39989623,0.00018023,2]
[424140740,1780608653000,-178.39989623,0.00018005,2]
[424140739,1780608653000,-1208.78474622,0.00018,2]
[424140736,1780608653000,-178.39989623,0.00017986,2]
[424140743,1780608653000,-178.39989623,0.00018042,2]
[424140734,1780608653000,-150.0,0.00017954,2]
[424140735,1780608653000,-178.39989623,0.00017967,2]
[424140732,1780608653000,-150.0,0.00017946,2]
[424140733,1780608653000,-178.39989623,0.00017948,2]
[424140738,1780608653000,-102887.06436542,0.00018,2]
[424140737,1780608653000,-150.0,0.00017997,2]
[424140742,1780608653000,-150.0,0.00018029,2]
[424140752,1780608653000,-178.39989623,0.00018117,2]
[424140755,1780608653000,-178.39989623,0.00018155,2]
[424140753,1780608653000,-178.39989623,0.00018136,2]
[424140744,1780608653000,-150.0,0.00018047,2]
[424140746,1780608653000,-178.39989623,0.00018061,2]
[424140745,1780608653000,-150.0,0.00018053,2]
[424140754,1780608653000,-150.0,0.00018147,2]
[424140748,1780608653000,-150.0,0.00018097,2]
[424140750,1780608653000,-1803.84088917,0.000181,2]
[424140749,1780608653000,-178.39989623,0.00018098,2]
[424140751,1780608653000,-150.0,0.00018103,2]
[424140756,1780608653000,-178.39989623,0.00018173,2]
[424140729,1780608653000,-150.0,0.0001793,2]
[424140747,1780608653000,-178.39989623,0.0001808,2]
[424140731,1780608653000,-1509.10095937,0.00017936,2]
[424140709,1780608653000,-150.0,0.00017732,2]
[424140727,1780608653000,-2000.0,0.00017929,2]
[424140701,1780608653000,-150.0,0.00017658,2]
[424140702,1780608653000,-178.39989623,0.00017667,2]
[424140703,1780608653000,-150.0,0.00017682,2]
[424140704,1780608653000,-178.39989623,0.00017686,2]
[424140705,1780608653000,-150.0,0.00017696,2]
[424140706,1780608653000,-793.92263506,0.000177,2]
[424140707,1780608653000,-178.39989623,0.00017705,2]
[424140708,1780608653000,-178.39989623,0.00017724,2]
[424140710,1780608653000,-178.39989623,0.00017742,2]
[424140717,1780608653000,-150.0,0.00017806,2]
[424140713,1780608653000,-178.39989623,0.0001778,2]
[424140714,1780608653000,-150.0,0.00017796,2]
[424140730,1780608653000,-178.39989623,0.0001793,2]
[424140715,1780608653000,-178.39989623,0.00017799,2]
[424140712,1780608653000,-178.39989623,0.00017761,2]
[424140757,1780608653000,-150.0,0.00018177,2]
[424140720,1780608653000,-150.0,0.00017846,2]
[424140711,1780608653000,-150.0,0.00017746,2]
[424140719,1780608653000,-178.39989623,0.00017836,2]
[424140722,1780608653000,-150.0,0.0001788,2]
[424140721,1780608653000,-178.39989623,0.00017855,2]
[424140724,1780608653000,-178.39989623,0.00017892,2]
[424140725,1780608653000,-150.0,0.00017896,2]
[424140723,1780608653000,-1240.73704456,0.0001789,2]
[424140728,1780608653000,-150.0,0.0001793,2]
[424140726,1780608653000,-178.39989623,0.00017911,2]
[424140716,1780608653000,-150.0,0.00017806,2]
[424140759,1780608653000,-178.39989623,0.00018192,2]
[424140718,1780608653000,-178.39989623,0.00017817,2]
[424140761,1780608653000,-178.39989623,0.00018211,2]
[424140793,1780608653000,-178.39989623,0.00018492,2]
[424140792,1780608653000,-267.90363859,0.00018474,2]
[424140794,1780608653000,-150.0,0.00018498,2]
[424140797,1780608653000,-178.39989623,0.00018529,2]
[424140803,1780608653000,-150.0,0.00018548,2]
[424140796,1780608653000,-216.873043,0.00018516,2]
[424140795,1780608653000,-178.39989623,0.0001851,2]
[424140798,1780608653000,-150.0,0.00018548,2]
[424140800,1780608653000,-150.0,0.00018548,2]
[424140802,1780608653000,-150.0,0.00018548,2]
[424140799,1780608653000,-150.0,0.00018548,2]
[424140801,1780608653000,-265.84083951,0.00018548,2]
[424140790,1780608653000,-150.0,0.00018474,2]
[424140804,1780608653000,-150.0,0.00018548,2]
[424140815,1780608653000,-548.48,0.00018573,2]
[424140808,1780608653000,-151.0,0.00018571,2]
[424140810,1780608653000,-548.48,0.00018573,2]
[424140806,1780608653000,-197.98931216,0.00018564,2]
[424140816,1780608653000,-548.48,0.00018573,2]
[424140814,1780608653000,-548.48,0.00018573,2]
[424140809,1780608653000,-548.48,0.00018573,2]
[424140807,1780608653000,-163.390817,0.00018571,2]
[424140813,1780608653000,-548.48,0.00018573,2]
[424140811,1780608653000,-548.48,0.00018573,2]
[424140817,1780608653000,-548.48,0.00018573,2]
[424140765,1780608653000,-150.0,0.00018247,2]
[424140805,1780608653000,-178.39989623,0.00018548,2]
[424140788,1780608653000,-178.39989623,0.00018454,2]
[424140812,1780608653000,-548.48,0.00018573,2]
[424140787,1780608653000,-150.0,0.00018448,2]
[424140789,1780608653000,-178.39989623,0.00018473,2]
[424140766,1780608653000,-178.39989623,0.00018248,2]
[424140760,1780608653000,-150.0,0.00018197,2]
[424140763,1780608653000,-178.39989623,0.00018229,2]
[424140762,1780608653000,-178.22365902,0.00018229,2]
[424140764,1780608653000,-150.0,0.00018239,2]
[424140768,1780608653000,-10000.0,0.00018257,2]
[424140778,1780608653000,-178.39989623,0.00018361,2]
[424140767,1780608653000,-150.0,0.00018251,2]
[424140771,1780608653000,-150.0,0.00018297,2]
[424140770,1780608653000,-178.39989623,0.00018286,2]
[424140779,1780608653000,-178.39989623,0.00018379,2]
[424140769,1780608653000,-178.39989623,0.00018267,2]
[424140758,1780608653000,-150.0,0.00018177,2]
[424140777,1780608653000,-150.0,0.00018347,2]
[424140772,1780608653000,-150.0,0.00018301,2]
[424140784,1780608653000,-178.39989623,0.00018417,2]
[424140785,1780608653000,-150.0,0.00018424,2]
[424140783,1780608653000,-314.2,0.0001841,2]
[424140791,1780608653000,-1509.10095937,0.00018474,2]
[424140781,1780608653000,-178.39989623,0.00018398,2]
[424140780,1780608653000,-150.0,0.00018398,2]
[424140776,1780608653000,-178.39989623,0.00018342,2]
[424140782,1780608653000,-150.0,0.000184,2]
[424140774,1780608653000,-178.39989623,0.00018323,2]
[424140786,1780608653000,-178.39989623,0.00018436,2]
[424140773,1780608653000,-178.39989623,0.00018304,2]
[424140775,1780608653000,-150.0,0.00018325,2]
[424140856,1780608654000,-500.0,0.00019097,2]
[424140844,1780608654000,-1000.0,0.00018953,2]
[424140849,1780608654000,-200.0,0.00019011,2]
[424140850,1780608654000,-3397.82563488,0.00019036,2]
[424140852,1780608654000,-363.79066132,0.00019053,2]
[424140851,1780608654000,-1108.7381655,0.00019046,2]
[424140853,1780608654000,-160.18,0.0001909,2]
[424140855,1780608654000,-1108.7381655,0.00019095,2]
[424140857,1780608654000,-2015.96190773,0.000191,2]
[424140848,1780608654000,-4190.0,0.00019,2]
[424140847,1780608654000,-2015.96190773,0.00019,2]
[424140862,1780608654000,-1108.7381655,0.00019154,2]
[424140859,1780608654000,-1108.7381655,0.00019101,2]
[424140858,1780608654000,-1108.7381655,0.00019101,2]
[424140860,1780608654000,-1108.7381655,0.00019143,2]
[424140863,1780608654000,-151.0,0.00019178,2]
[424140865,1780608654000,-1108.7381655,0.00019257,2]
[424140864,1780608654000,-1108.7381655,0.00019222,2]
[424140861,1780608654000,-1108.7381655,0.00019146,2]
[424140867,1780608654000,-1108.7381655,0.00019262,2]
[424140869,1780608654000,-1108.7381655,0.00019277,2]
[424140845,1780608654000,-1108.7381655,0.00018983,2]
[424140876,1780608654000,-2015.96190773,0.000195,2]
[424140854,1780608654000,-1108.7381655,0.00019094,2]